bitfinex/quotes_SOLUSD_20250619
["timestamp","ask_amount","ask_price","bid_price","bid_amount"]
[1750295664952,36.76566164,145.84,145.79,13.38484265]
[1750295665354,36.76566164,145.84,145.8,6.52566164]
[1750295666059,30.24,145.84,145.8,6.52566164]
[1750295666253,36.76566164,145.84,145.8,6.52566164]
[1750295666661,36.76566164,145.84,145.79,13.38484265]
[1750295667846,30.24,145.84,145.81,6.52566164]
[1750295668047,7.42,145.86,145.83,6.52566164]
[1750295668537,9.91931109,145.86,145.84,6.52566164]
[1750295668742,7.42,145.86,145.84,6.52566164]
[1750295669163,7.42,145.86,145.85,6.85635927]
[1750295671969,7.42,145.86,145.84,13.38232601]
[1750295672745,154.42,145.86,145.84,13.38232601]
[1750295675441,154.42,145.86,145.84,6.85666437]
[1750295675845,195.99690746,145.85,145.78,8.13776164]
[1750295676084,6.52566164,145.83,145.79,6.85911091]
[1750295676272,39.20577218,145.83,145.79,6.85911091]
[1750295676467,36.70566164,145.83,145.79,6.85911091]
[1750295676792,6.52566164,145.81,145.78,6.85958316]
[1750295677986,18.79855542,145.82,145.78,6.85958316]
[1750295679261,6.52566164,145.81,145.78,6.85958316]
[1750295679462,2.50426226,145.81,145.78,6.85958316]
[1750295680559,9.0299239,145.81,145.78,6.85958316]
[1750295680980,2.50426226,145.81,145.78,6.85958316]
[1750295681175,2.50426226,145.8,145.78,6.85958316]
[1750295681380,16.29814719,145.81,145.78,6.85958316]
[1750295681591,2.50712275,145.8,145.76,13.38625439]
[1750295681782,2.50712275,145.79,145.76,13.38625439]
[1750295682098,6.52566164,145.8,145.76,13.38625439]
[1750295682286,16.31271594,145.8,145.76,6.86059275]
[1750295682478,2.50761925,145.79,145.76,6.86059275]
[1750295682674,6.52566164,145.77,145.72,13.00180484]
[1750295682989,161.04907601,145.76,145.72,6.86240484]
[1750295683180,147.0,145.76,145.72,13.38806648]
[1750295683698,2.50803365,145.75,145.72,13.38806648]
[1750295683881,147.0,145.76,145.73,6.52566164]
[1750295684067,147.0,145.76,145.75,6.52566164]
[1750295684464,147.0,145.76,145.75,13.3867251]
[1750295689593,147.0,145.76,145.75,6.86106346]
[1750295689895,147.0,145.76,145.75,13.3867251]
[1750295691906,147.0,145.76,145.73,6.86200507]
[1750295692194,156.02978339,145.75,145.72,6.86229073]
[1750295692402,153.52566164,145.75,145.72,6.86229073]
[1750295692582,147.0,145.74,145.72,6.86229073]
[1750295693399,147.0,145.74,145.72,13.38795237]
[1750295694171,147.0,145.74,145.72,6.86229073]
[1750295695395,147.0,145.74,145.73,6.52566164]
[1750295696398,147.0,145.78,145.73,6.52566164]
[1750295696592,147.0,145.78,145.77,6.52566164]
[1750295697483,147.0,145.78,145.77,13.38578375]
[1750295697790,52.70862873,145.83,145.77,13.38578375]
[1750295697976,2.49976246,145.82,145.79,6.52566164]
[1750295698370,17.76839119,145.83,145.77,24.01042738]
[1750295698594,17.76839119,145.83,145.81,6.52566164]
[1750295698870,17.76839119,145.83,145.8,6.52566164]
[1750295699099,15.26862873,145.83,145.8,6.52566164]
[1750295699403,17.76839119,145.83,145.8,6.52566164]
[1750295699616,15.26862873,145.83,145.81,6.85824017]
[1750295700502,17.77101136,145.83,145.81,6.85824017]
[1750295700803,15.26862873,145.83,145.81,6.85824017]
[1750295702805,15.26862873,145.83,145.81,13.38390181]
[1750295704289,15.26862873,145.83,145.81,6.85824017]
[1750295704893,15.26862873,145.83,145.81,13.38390181]
[1750295707207,147.0,145.8,145.79,6.52566164]
[1750295707699,147.0,145.8,145.79,13.38484265]
[1750295708486,15.26862873,145.83,145.79,30.53279518]
[1750295708688,15.26862873,145.83,145.82,6.52566164]
[1750295709306,147.0,145.85,145.82,6.52566164]
[1750295709506,147.0,145.85,145.84,6.52566164]
[1750295709835,147.0,145.85,145.84,13.38249104]
[1750295710192,7.24,145.87,145.84,13.38249104]
[1750295710193,7.24,145.87,145.84,30.52456454]
[1750295710392,7.24,145.87,145.86,6.52566164]
[1750295711518,147.0,145.89,145.86,6.52566164]
[1750295711714,147.0,145.89,145.82,24.00219448]
[1750295712030,147.0,145.89,145.82,6.85776985]
[1750295712031,6.52566164,145.85,145.82,6.85776985]
[1750295712340,30.04,145.86,145.82,6.85776985]
[1750295712490,36.56566164,145.86,145.82,13.38343149]
[1750295713413,6.52566164,145.85,145.81,6.85824017]
[1750295713629,30.04,145.86,145.82,6.52566164]
[1750295713630,36.56566164,145.86,145.82,6.52566164]
[1750295713933,6.52566164,145.83,145.79,6.52566164]
[1750295714127,30.02,145.84,145.8,6.52566164]
[1750295715630,30.02,145.84,145.81,6.85824017]
[1750295716641,30.02,145.84,145.81,13.38390181]
[1750295716820,13.76566164,145.86,145.82,6.52566164]
[1750295717022,46.28709975,145.86,145.82,6.52566164]
[1750295717374,6.52566164,145.83,145.78,6.85965152]
[1750295717541,153.52566164,145.82,145.78,13.38531316]
[1750295717917,147.0,145.82,145.78,13.38531316]
[1750295718322,153.52566164,145.82,145.78,13.38531316]
[1750295718727,153.52566164,145.82,145.78,6.85965152]
[1750295718925,147.0,145.82,145.78,6.85965152]
[1750295719139,153.52566164,145.82,145.78,6.85965152]
[1750295720318,147.0,145.82,145.78,13.38531316]
[1750295720522,147.0,145.82,145.8,6.52566164]
[1750295721245,147.0,145.82,145.81,6.52566164]
[1750295722140,147.0,145.82,145.81,13.38390181]
[1750295723435,147.0,145.82,145.81,6.85824017]
[1750295723945,147.0,145.82,145.81,13.38390181]
[1750295724139,147.0,145.91,145.82,18.64964886]
[1750295724346,156.02733005,145.9,145.86,6.52566164]
[1750295724531,153.52566164,145.9,145.85,6.52566164]
[1750295724738,183.50566164,145.9,145.86,6.52566164]
[1750295724946,183.50566164,145.9,145.85,6.52566164]
[1750295725447,6.52566164,145.86,145.82,6.52566164]
[1750295725626,147.0,145.89,145.84,6.52566164]
[1750295725825,176.98,145.88,145.84,6.52566164]
[1750295726053,176.98,145.88,145.85,6.85635927]
[1750295726256,183.50566164,145.88,145.85,6.85635927]
[1750295726452,176.98,145.88,145.85,6.85635927]
[1750295727357,147.0,145.88,145.85,6.85635927]
[1750295727546,176.98,145.88,145.85,6.85635927]
[1750295728370,147.0,145.88,145.85,6.85635927]
[1750295728656,176.96,145.88,145.85,6.85635927]
[1750295728857,183.48566164,145.88,145.85,6.85635927]
[1750295731150,176.96,145.88,145.85,6.85635927]
[1750295731536,176.96,145.88,145.85,13.38202091]
[1750295732938,147.0,145.87,145.86,6.52566164]
[1750295733749,147.0,145.87,145.85,23.99725745]
[1750295733961,147.0,145.87,145.86,6.52566164]
[1750295735060,147.0,145.87,145.86,13.38155084]
[1750295735275,147.0,145.87,145.86,6.8558892]
[1750295736249,147.0,145.87,145.86,13.38155084]
[1750295737860,147.0,145.87,145.86,6.8558892]
[1750295738062,147.0,145.87,145.86,13.38155084]
[1750295738367,147.0,145.86,145.82,6.85776985]
[1750295738571,153.52566164,145.86,145.82,13.38343149]
[1750295739566,147.0,145.86,145.83,6.52566164]
[1750295740974,147.0,145.86,145.83,13.38260832]
[1750295742069,147.0,145.86,145.83,6.85694668]
[1750295743561,147.0,145.86,145.83,13.38260832]
[1750295743771,29.92,145.87,145.83,13.38260832]
[1750295743772,147.0,145.85,145.83,13.38260832]
[1750295746573,147.0,145.85,145.83,6.85694668]
[1750295746782,147.0,145.85,145.83,13.38260832]
[1750295747643,147.0,145.85,145.79,18.64964886]
[1750295747644,183.42566164,145.85,145.78,17.14909869]
[1750295747844,149.50789725,145.84,145.8,6.52566164]
[1750295748071,149.50782082,145.83,145.8,6.52566164]
[1750295748344,6.52566164,145.81,145.77,6.86012211]
[1750295748647,147.0,145.8,145.78,6.52566164]
[1750295748851,147.0,145.8,145.79,6.52566164]
[1750295749775,147.0,145.8,145.79,13.38484265]
[1750295749976,26.0,145.85,145.79,49.18244404]
[1750295749977,29.88,145.85,145.79,49.18244404]
[1750295750150,36.40566164,145.86,145.81,6.52566164]
[1750295750461,12.29105254,145.85,145.81,6.52566164]
[1750295750852,12.29603538,145.85,145.82,6.52566164]
[1750295751468,7.52432176,145.85,145.82,6.52566164]
[1750295751664,2.50810725,145.85,145.82,6.52566164]
[1750295751862,2.50810725,145.85,145.83,6.85729959]
[1750295752472,2.50810725,145.85,145.83,13.38296123]
[1750295752869,29.88,145.86,145.83,13.38296123]
[1750295753186,2.50762164,145.85,145.83,6.85729959]
[1750295754500,2.50805619,145.85,145.82,6.52566164]
[1750295754663,12.31425398,145.86,145.82,6.52566164]
[1750295754969,2.50805619,145.85,145.82,6.52566164]
[1750295755555,147.0,145.84,145.83,6.85729959]
[1750295756282,147.0,145.84,145.83,13.38296123]
[1750295756993,147.0,145.84,145.83,32.03261009]
[1750295757159,17.45989778,145.88,145.83,83.46235704]
[1750295757354,17.45989778,145.88,145.87,6.52566164]
[1750295757579,2.51006364,145.9,145.87,13.38108084]
[1750295757779,2.51006364,145.9,145.89,6.52566164]
[1750295758366,7.18,145.91,145.89,6.52566164]
[1750295758682,176.84,145.94,145.9,6.52566164]
[1750295758859,147.0,145.94,145.91,6.52566164]
[1750295759265,147.0,145.94,145.93,6.52566164]
[1750295759478,147.0,145.94,145.93,13.3782622]
[1750295760367,147.0,145.94,145.93,6.85260056]
[1750295760590,147.0,145.94,145.93,13.3782622]
[1750295761083,7.18,145.96,145.93,13.3782622]
[1750295761286,7.18,145.96,145.94,6.52566164]
[1750295761466,7.18,145.96,145.95,13.37732316]
[1750295761671,36.36566164,145.99,145.95,13.37732316]
[1750295761867,18.13540821,146.0,145.96,6.52566164]
[1750295762079,60.2393242,146.0,145.95,6.85166152]
[1750295762281,2.50253496,145.99,145.96,6.52566164]
[1750295762792,6.52566164,145.97,145.91,13.37920149]
[1750295762977,6.52566164,145.94,145.89,6.52566164]
[1750295763160,29.82,145.94,145.89,6.52566164]
[1750295763361,29.82,145.94,145.91,6.52566164]
[1750295763588,29.82,145.94,145.9,13.37946919]
[1750295764157,29.82,145.94,145.91,6.52566164]
[1750295764772,29.82,145.94,145.9,6.85380755]
[1750295764978,202.82,145.96,145.93,6.52566164]
[1750295765274,209.34566164,145.96,145.92,6.52566164]
[1750295765480,179.52566164,145.96,145.92,6.52566164]
[1750295765692,209.32566164,145.96,145.91,6.52566164]
[1750295765879,9.02731112,145.95,145.91,6.52566164]
[1750295766187,2.50164948,145.95,145.92,6.52566164]
[1750295766586,202.8,145.96,145.92,6.52566164]
[1750295766788,202.8,145.96,145.93,6.52566164]
[1750295766974,176.8,145.96,145.94,6.52566164]
[1750295767287,147.0,145.96,145.94,6.52566164]
[1750295767687,147.0,145.96,145.94,13.37776732]
[1750295768186,147.0,145.95,145.94,13.37776732]
[1750295768889,147.0,145.95,145.93,18.01906774]
[1750295769580,147.0,145.95,145.93,6.85242236]
[1750295769988,147.0,145.95,145.93,18.01906774]
[1750295771792,147.0,145.95,145.92,18.01966599]
[1750295771992,147.0,145.95,145.93,11.16664538]
[1750295772368,147.0,145.95,145.92,18.01966599]
[1750295772691,147.0,145.95,145.92,11.16664538]
[1750295773086,147.0,145.95,145.92,18.01963247]
[1750295773392,147.0,145.94,145.92,18.01963247]
[1750295773591,147.0,145.94,145.93,11.16664538]
[1750295774076,147.0,145.94,145.92,18.01963247]
[1750295776185,147.0,145.94,145.92,6.85305208]
[1750295776501,147.0,145.94,145.93,11.16664538]
[1750295777695,147.0,145.94,145.93,18.01924594]
[1750295780718,147.0,145.98,145.93,53.8003962]
[1750295781011,147.0,145.98,145.97,11.16664538]
[1750295781620,7.1,146.05,145.97,29.81629424]
[1750295781621,147.0,146.03,145.97,29.81629424]
[1750295781836,147.0,146.03,145.98,1.6479]
[1750295781993,147.0,146.03,146.01,11.16664538]
[1750295782604,147.0,146.03,146.02,11.16664538]
[1750295782788,147.0,146.07,146.02,11.16664538]
[1750295782986,147.0,146.07,146.0,18.64964886]
[1750295783692,147.0,146.07,146.05,11.16664538]
[1750295783906,147.0,146.07,146.05,18.01344918]
[1750295784419,147.0,146.07,146.06,11.16664538]
[1750295785107,13.7325,146.12,146.06,11.16664538]
[1750295785108,18.26664538,146.12,146.06,11.16664538]
[1750295785293,20.75055315,146.12,146.07,11.16664538]
[1750295785493,29.72,146.11,146.07,11.16664538]
[1750295786318,29.72,146.11,146.07,18.01261455]
[1750295786618,40.39025632,146.12,146.09,11.16664538]
[1750295786817,11.16664538,146.11,146.06,6.84646961]
[1750295786999,40.86664538,146.1,146.06,18.01311499]
[1750295787197,40.86664538,146.1,146.02,17.11999151]
[1750295787198,11.16664538,146.09,146.05,11.16664538]
[1750295787401,40.86664538,146.1,146.06,11.16664538]
[1750295787621,29.7,146.1,146.07,11.16664538]
[1750295788122,40.86664538,146.1,146.06,11.16664538]
[1750295788430,29.7,146.1,146.06,18.01309204]
[1750295788607,40.86664538,146.1,146.06,18.01309204]
[1750295788814,40.86664538,146.1,146.06,11.16664538]
[1750295789322,11.16664538,146.07,146.03,18.01455334]
[1750295789522,11.16664538,146.07,146.01,1.644]
[1750295789523,11.16664538,146.06,146.01,11.16664538]
[1750295789724,29.7,146.05,145.99,6.84978423]
[1750295790046,11.16664538,146.03,145.99,18.01642961]
[1750295790208,40.86664538,146.03,145.99,18.01642961]
[1750295790832,29.7,146.03,145.99,13.35830983]
[1750295791240,29.7,146.03,146.0,6.5085256]
[1750295791406,190.2885256,146.05,146.01,6.5085256]
[1750295792031,190.2885256,146.05,145.99,6.84978423]
[1750295792207,190.2885256,146.05,146.01,6.5085256]
[1750295792407,160.5885256,146.05,146.01,6.5085256]
[1750295792716,160.5885256,146.05,146.01,13.35712623]
[1750295793025,165.235393,146.05,146.01,18.00399363]
[1750295794721,154.08,146.05,146.01,6.84860063]
[1750295794932,40.835393,146.04,146.01,6.84860063]
[1750295795128,29.68,146.04,146.01,6.84860063]
[1750295795320,40.835393,146.04,146.01,6.84860063]
[1750295796832,11.155393,146.04,146.01,6.84860063]
[1750295797213,194.915393,146.05,146.01,6.84860063]
[1750295797415,11.155393,146.04,146.0,18.00462041]
[1750295797750,11.155393,146.04,146.0,6.84922741]
[1750295798248,11.155393,146.03,146.0,6.84922741]
[1750295798544,11.155393,146.03,145.98,42.62528727]
[1750295798717,11.155393,146.04,146.0,11.155393]
[1750295798926,183.76,146.05,146.01,11.155393]
[1750295799119,40.57059251,146.13,145.99,18.64964886]
[1750295799120,147.0,146.03,145.99,18.64964886]
[1750295799429,147.0,146.03,146.02,11.155393]
[1750295800416,147.0,146.03,146.02,18.00376993]
[1750295804026,147.0,146.03,146.02,36.65341879]
[1750295804922,147.0,146.03,146.02,6.84837693]
[1750295805643,147.0,146.03,146.02,18.00376993]
[1750295806142,147.0,146.03,146.02,6.84837693]
[1750295807148,147.0,146.02,146.0,18.00470806]
[1750295807516,147.0,146.02,146.0,6.84931506]
[1750295809647,147.0,146.02,146.0,11.155393]
[1750295811036,147.0,146.02,146.01,11.155393]
[1750295811627,147.0,146.02,146.01,6.84884596]
[1750295812041,147.0,146.02,146.01,18.00423896]
[1750295814838,147.0,146.02,146.01,13.3552806]
[1750295815660,147.0,146.02,146.01,32.00492946]
[1750295816442,147.0,146.09,146.03,1.6651]
[1750295816751,147.0,146.09,146.08,6.50643464]
[1750295817640,147.0,146.09,146.08,13.35199871]
[1750295817827,6.50643464,146.13,146.08,13.35199871]
[1750295818151,38.59726823,146.13,146.09,6.50643464]
[1750295818335,6.50643464,146.13,146.09,6.50643464]
[1750295818535,8.9989754,146.13,146.09,6.50643464]
[1750295818743,2.49254076,146.13,146.09,6.50643464]
[1750295819141,2.49254076,146.13,146.1,6.84462696]
[1750295819342,2.49254076,146.13,146.1,13.3510616]
[1750295820038,183.10643464,146.14,146.1,6.84462696]
[1750295820360,183.08643464,146.14,146.1,13.3510616]
[1750295820866,147.0,146.14,146.11,6.50643464]
[1750295821730,147.0,146.14,146.12,6.50643464]
[1750295821935,147.0,146.14,146.13,6.50643464]
[1750295822153,147.0,146.14,146.12,6.50643464]
[1750295822539,147.0,146.14,146.13,6.84322178]
[1750295823145,147.0,146.14,146.13,13.34965642]
[1750295824258,147.0,146.14,146.13,31.99930528]
[1750295824472,147.0,146.19,146.15,6.84228532]
[1750295824634,147.0,146.19,146.18,6.50643464]
[1750295824837,147.0,146.19,146.17,6.50643464]
[1750295826659,147.0,146.19,146.16,13.34825182]
[1750295827069,147.0,146.19,146.17,6.50643464]
[1750295827448,147.0,146.19,146.18,6.50643464]
[1750295828449,147.0,146.19,146.17,6.50643464]
[1750295828851,147.0,146.19,146.18,6.50643464]
[1750295829163,147.0,146.19,146.17,6.50643464]
[1750295830569,147.0,146.19,146.17,13.34743939]
[1750295830949,6.50643464,146.21,146.16,6.84150301]
[1750295830950,147.0,146.18,146.16,6.84150301]
[1750295831149,147.0,146.17,146.16,6.84150301]
[1750295831351,147.0,146.17,146.15,13.34858508]
[1750295832059,147.0,146.17,146.16,6.50643464]
[1750295832571,147.0,146.17,146.16,13.34825182]
[1750295832772,147.0,146.17,146.16,6.84181718]
[1750295832972,147.0,146.17,146.16,13.34825182]
[1750295834868,147.0,146.17,146.16,6.84181718]
[1750295835258,147.0,146.17,146.16,13.34825182]
[1750295835771,147.0,146.17,146.14,6.84275352]
[1750295835974,147.0,146.17,146.14,13.34918816]
[1750295836652,147.0,146.17,146.15,6.50643464]
[1750295837946,147.0,146.17,146.16,6.50643464]
[1750295838174,147.0,146.17,146.14,32.84275352]
[1750295838378,147.0,146.17,146.14,13.34918816]
[1750295839263,147.0,146.17,146.15,6.50643464]
[1750295839777,147.0,146.17,146.14,6.84275352]
[1750295839953,147.0,146.17,146.15,6.50643464]
[1750295840271,147.0,146.17,146.16,13.34825182]
[1750295840843,147.0,146.17,146.16,5.09842251]
[1750295841371,147.0,146.17,146.14,6.50643464]
[1750295842577,147.0,146.17,146.14,13.34918816]
[1750295842967,147.0,146.17,146.15,6.50643464]
[1750295844475,147.0,146.16,146.15,6.50643464]
[1750295844776,6.50643464,146.2,146.15,6.50643464]
[1750295845024,6.50643464,146.2,146.16,6.50643464]
[1750295845778,6.50643464,146.2,146.15,6.50643464]
[1750295847056,39.57439081,146.21,146.17,6.50643464]
[1750295847378,10.07439081,146.21,146.17,6.50643464]
[1750295847781,10.07439081,146.21,146.16,6.50643464]
[1750295848482,6.50643464,146.2,146.16,6.50643464]
[1750295848654,6.50643464,146.2,146.15,30.45443326]
[1750295849290,6.50643464,146.2,146.16,6.50643464]
[1750295849475,6.50643464,146.2,146.17,6.84134911]
[1750295849968,6.50643464,146.19,146.17,6.84134911]
[1750295850169,147.0,146.18,146.17,6.84134911]
[1750295850884,147.0,146.18,146.16,6.84181718]
[1750295851961,147.0,146.18,146.16,13.34825182]
[1750295855790,147.0,146.18,146.16,6.84181718]
[1750295856092,147.0,146.17,146.16,6.84181718]
[1750295856292,147.0,146.17,146.16,6.50643464]
[1750295857972,147.0,146.17,146.16,13.34825182]
[1750295858696,147.0,146.17,146.16,31.99790068]
[1750295859194,147.0,146.22,146.16,49.10244364]
[1750295859505,147.0,146.22,146.19,6.50643464]
[1750295859681,147.0,146.22,146.16,42.596009]
[1750295860020,147.0,146.22,146.2,6.50643464]
[1750295860185,147.0,146.22,146.19,17.10074997]
[1750295860373,147.0,146.22,146.21,6.50643464]
[1750295860789,6.96,146.25,146.21,6.50643464]
[1750295860978,7.28992199,146.24,146.22,6.50643464]
[1750295861175,4.79448911,146.24,146.22,6.50643464]
[1750295861596,11.95086369,146.25,146.22,6.50643464]
[1750295861781,6.96,146.25,146.23,6.83854202]
[1750295861987,11.95086369,146.25,146.23,6.83854202]
[1750295862298,11.7464623,146.25,146.23,6.83854202]
[1750295862601,4.99086369,146.24,146.23,6.83854202]
[1750295862784,4.99086369,146.24,146.21,6.83947746]
[1750295862979,4.99612953,146.24,146.21,13.3459121]
[1750295863187,13.46643464,146.25,146.21,13.3459121]
[1750295863388,6.50643464,146.23,146.19,6.84041316]
[1750295863603,9.00446185,146.23,146.19,13.3468478]
[1750295863804,6.50643464,146.23,146.19,13.3468478]
[1750295864312,4.99414369,146.22,146.19,13.3468478]
[1750295864513,4.99414369,146.22,146.18,6.84070753]
[1750295864686,11.50057833,146.21,146.18,6.84070753]
[1750295864890,6.50643464,146.21,146.18,6.84070753]
[1750295865088,6.50643464,146.2,146.16,13.34814532]
[1750295865285,6.50643464,146.19,146.16,6.84171068]
[1750295865486,147.0,146.21,146.17,6.50643464]
[1750295865695,4.99857009,146.2,146.17,13.34733637]
[1750295865906,153.50643464,146.21,146.17,13.34733637]
[1750295866105,4.99832235,146.2,146.17,13.34733637]
[1750295866287,153.50643464,146.21,146.17,13.34733637]
[1750295866629,11.50497743,146.2,146.17,6.84090173]
[1750295866800,4.99854279,146.19,146.17,13.34733637]
[1750295867003,4.99854279,146.2,146.18,6.50643464]
[1750295867226,4.99854279,146.19,146.18,6.50643464]
[1750295867895,147.0,146.21,146.18,13.34731574]
[1750295868087,5.00129327,146.2,146.18,13.34731574]
[1750295868292,147.0,146.21,146.18,13.34731574]
[1750295868915,147.0,146.21,146.2,6.50643464]
[1750295869600,147.0,146.21,146.19,6.50643464]
[1750295869801,147.0,146.21,146.2,6.83994528]
[1750295870416,147.0,146.21,146.2,13.34637992]
[1750295870913,147.0,146.21,146.2,6.83994528]
[1750295874516,147.0,146.21,146.19,6.84041316]
[1750295876817,147.0,146.21,146.19,13.3468478]
[1750295877200,147.0,146.21,146.19,6.84041316]
[1750295877409,147.0,146.21,146.19,13.3468478]
[1750295882326,6.50643464,146.2,146.15,17.1046312]
[1750295882596,6.50643464,146.2,146.14,18.64964886]
[1750295882597,4.99877522,146.2,146.16,13.34825182]
[1750295882730,147.0,146.21,146.17,6.50643464]
[1750295883443,147.0,146.21,146.18,6.8408811]
[1750295883647,147.0,146.21,146.18,13.34731574]
[1750295883999,147.0,146.21,146.2,6.50643464]
[1750295885518,147.0,146.21,146.2,13.34637992]
[1750295889637,147.0,146.21,146.2,31.99602878]
[1750295890819,147.0,146.21,146.2,13.34637992]
[1750295891428,147.0,146.21,146.2,6.83994528]
[1750295892435,147.0,146.21,146.2,13.34637992]
[1750295897745,147.0,146.21,146.2,6.83994528]
[1750295897938,147.0,146.21,146.16,6.84181718]
[1750295897939,147.0,146.2,146.16,6.84181718]
[1750295898145,6.50643464,146.19,146.16,6.84181718]
[1750295898331,153.50643464,146.2,146.16,6.84181718]
[1750295898644,153.50643464,146.2,146.16,13.34825182]
[1750295899426,147.0,146.2,146.16,13.34825182]
[1750295899733,153.50643464,146.2,146.16,13.34825182]
[1750295901015,153.50643464,146.2,146.16,6.84181718]
[1750295901218,153.50643464,146.2,146.16,13.34825182]
[1750295902450,153.50643464,146.2,146.15,6.50643464]
[1750295902752,147.0,146.19,146.15,6.50643464]
[1750295903257,147.0,146.19,146.16,6.50643464]
[1750295904051,147.0,146.19,146.14,23.94850039]
[1750295904362,153.50643464,146.18,146.14,6.84275352]
[1750295904849,6.50643464,146.17,146.14,6.84275352]
[1750295905349,6.50643464,146.16,146.14,6.84275352]
[1750295905943,147.0,146.15,146.12,6.84369011]
[1750295906140,153.50643464,146.15,146.12,6.84369011]
[1750295907042,147.0,146.15,146.12,6.84369011]
[1750295907357,153.50643464,146.15,146.12,6.84369011]
[1750295908450,6.50643464,146.13,146.08,6.50643464]
[1750295908645,6.50643464,146.11,146.07,6.50643464]
[1750295908829,6.50643464,146.11,146.07,13.35246736]
[1750295910433,153.50643464,146.12,146.07,13.35246736]
[1750295910840,153.50643464,146.12,146.06,23.96171017]
[1750295911039,6.50643464,146.11,146.06,23.96171017]
[1750295911238,6.50643464,146.11,146.07,6.50643464]
[1750295912461,147.0,146.12,146.09,6.50643464]
[1750295913038,147.0,146.12,146.1,6.84462696]
[1750295914577,153.50643464,146.12,146.07,6.50643464]
[1750295915048,153.50643464,146.12,146.09,6.84509548]
[1750295915637,147.0,146.12,146.06,17.11625359]
[1750295915838,6.50643464,146.1,146.07,6.84603272]
[1750295916065,147.0,146.09,146.05,6.84697021]
[1750295916240,153.50643464,146.09,146.05,13.35340485]
[1750295916767,153.50643464,146.09,146.05,6.84697021]
[1750295919556,6.50643464,146.07,146.03,6.84790796]
[1750295919754,153.50643464,146.06,146.03,6.84790796]
[1750295920146,153.50643464,146.06,146.0,6.84931506]
[1750295920147,6.50643464,146.05,146.0,6.84931506]
[1750295920373,36.12556552,146.08,146.0,13.3557497]
[1750295920374,153.50643464,146.04,146.0,13.3557497]
[1750295920556,153.50643464,146.04,146.0,6.84931506]
[1750295920759,6.50643464,146.03,146.0,6.84931506]
[1750295921069,147.0,146.02,146.0,6.84931506]
[1750295921778,147.0,146.01,145.99,6.84978423]
[1750295922282,147.0,146.0,145.98,6.85007227]
[1750295923882,147.0,146.0,145.98,13.35650691]
[1750295924591,147.0,146.0,145.99,6.50643464]
[1750295925295,147.0,146.0,145.98,13.35650691]
[1750295925668,147.0,146.0,145.98,6.85007227]
[1750295925995,147.0,145.99,145.98,6.85007227]
[1750295926882,147.0,145.99,145.97,6.85072275]
[1750295929093,147.0,145.99,145.95,6.85166152]
[1750295929407,147.0,145.98,145.96,6.50643464]
[1750295930484,147.0,145.98,145.95,23.98081533]
[1750295930485,147.0,145.98,145.97,6.50643464]
[1750295930788,6.50643464,146.02,145.97,6.50643464]
[1750295930789,153.8,146.04,145.97,25.1560835]
[1750295931088,147.0,146.04,146.03,6.84790796]
[1750295931290,147.0,146.05,146.03,6.84790796]
[1750295933487,147.0,146.05,146.03,13.3543426]
[1750295934600,147.0,146.05,146.04,6.50643464]
[1750295934818,6.8,146.09,146.04,25.1560835]
[1750295934986,153.50643464,146.12,146.08,6.50643464]
[1750295935190,6.50643464,146.11,146.07,6.50643464]
[1750295935493,6.50643464,146.11,146.08,6.84556407]
[1750295935705,6.50643464,146.1,146.06,6.84650143]
[1750295935908,147.0,146.12,146.06,6.84650143]
[1750295935909,6.50643464,146.08,146.06,6.84650143]
[1750295936091,29.26,146.11,146.06,6.84650143]
[1750295936420,6.50643464,146.09,146.06,6.84650143]
[1750295937014,153.50643464,146.1,146.06,13.35293607]
[1750295937990,153.50643464,146.1,146.06,6.50643464]
[1750295938200,153.50643464,146.1,146.04,17.11856388]
[1750295938398,6.50643464,146.09,146.05,6.50643464]
[1750295939928,6.50643464,146.09,146.06,6.84650143]
[1750295940807,153.50643464,146.08,146.06,6.84650143]
[1750295941110,153.50643464,146.07,146.03,6.50643464]
[1750295941310,147.0,146.06,146.03,6.50643464]
[1750295941606,147.0,146.06,146.02,6.84837693]
[1750295941811,147.0,146.06,146.03,6.50643464]
[1750295942030,6.50643464,146.05,146.02,6.84837693]
[1750295943226,153.50643464,146.04,146.0,13.3557497]
[1750295943410,153.50643464,146.03,146.0,6.84931506]